[Event "Cracovia Festival-A 2023"]
[Site "Krakow"]
[Date "2024.01.03"]
[Round "8.7"]
[White "Golubka, Petro"]
[Black "Antolak, Julia"]
[Result "1-0"]
[ECO "E20"]
[WhiteElo "2440"]
[BlackElo "2287"]
[Annotator "RC"]
[PlyCount "217"]
[EventDate "2023.12.24"]
[EventType "swiss"]
[EventCountry "POL"]
[SourceTitle "playchess.com"]
[Source "ChessBase"]
[SourceQuality "1"]
[TimeControl "40/5400+30:1800+30"]

1. d4 {[%emt 0:10:33]} Nf6 {[%emt 0:00:08]} 2. c4 {[%emt 0:00:18]} e6 {[%emt 0:00:05]} 3. Nc3 {[%emt 0:00:13]} Bb4 {[%emt 0:00:04]} 4. f3 {[%emt 0:00:19]} c5 {[%emt 0:00:06]} 5. d5 {[%emt 0:00:12]} O-O {[%emt 0:00:59]} 6. e4 {[%emt 0:00:20]} b5 {[%emt 0:00:26]} 7. e5 {[%emt 0:08:03]} exd5 {[%emt 0:01:26]} 8. exf6 {[%emt 0:06:44]} d4 {[%emt 0:00:11]} 9. a3 {[%emt 0:02:21]} Ba5 {[%emt 0:00:11]} 10. b4 {[%emt 0:13:15]} dxc3 {[%emt 0:01:09]} 11. bxa5 {[%emt 0:00:12]} Qxf6 {[%emt 0:00:18]} 12. Ne2 {[%emt 0:10:00]} c2 {[%emt 0:11:30]} 13. Qd5 {[%emt 0:10:30]} Qxa1 {[%emt 0:07:39]} 14. cxb5 {[%emt 0:02:46]} Nc6 {[%emt 0:11:26]} 15. bxc6 {[%emt 0:06:26]} Ba6 {[%emt 0:05:21]} 16. Kf2 {[%emt 0:00:27]} dxc6 {[%emt 0:01:58]} 17. Qxc5 {[%emt 0:01:16]} Rfe8 {[%emt 0:07:14]} 18. Qxc2 {[%emt 0:01:48]} Qe5 {[%emt 0:03:21]} 19. Qc3 {[%emt 0:02:23]} Rad8 {[%emt 0:06:44]} 20. Bb2 {[%emt 0:04:07]} Qxc3 {[%emt 0:17:28]} 21. Bxc3 {[%emt 0:00:13]} Rd3 {[%emt 0:02:01]} 22. Bb4 {[%emt 0:01:40]} Rb3 {[%emt 0:02:32]} 23. Nd4 {[%emt 0:00:55]} Rb2+ {[%emt 0:00:31]} 24. Kg3 {[%emt 0:00:10]} Rb1 {[%emt 0:02:12]} 25. Bxa6 {[%emt 0:00:41]} Rxh1 {[%emt 0:00:07]} 26. Nxc6 {[%emt 0:00:25]} Rc1 {[%emt 0:03:10]} 27. Ne7+ {[%emt 0:00:43]} Kh8 {[%emt 0:00:35]} 28. Nf5 {[%emt 0:00:21]} Re6 {[%emt 0:01:06]} 29. Bd3 {[%emt 0:00:31]} Rd1 {[%emt 0:02:56]} 30. Bc2 {[%emt 0:03:07]} Rd8 {[%emt 0:01:53]} 31. Be4 {[%emt 0:01:50]} g6 {[%emt 0:02:34]} 32. Ne3 {[%emt 0:02:19]} Kg7 {[%emt 0:00:44]} 33. Nc4 {[%emt 0:00:23]} f6 {[%emt 0:00:51]} 34. Bb7 {[%emt 0:01:06]} Rd4 {[%emt 0:04:00]} 35. Nd2 {[%emt 0:00:27]} Re2 {[%emt 0:01:19]} 36. Ne4 {[%emt 0:00:44]} Rd7 {[%emt 0:01:47]} 37. a6 {[%emt 0:00:10]} f5 {[%emt 0:00:28]} 38. Nd6 {[%emt 0:00:59]} h5 {[%emt 0:01:15]} 39. f4 {[%emt 0:03:47]} Re6 {[%emt 0:01:04]} 40. Nc4 {[%emt 0:00:00]} Rd3+ {[%emt 0:00:00]} 41. Kf2 {[%emt 0:02:02]} h4 {[%emt 0:06:11]} 42. Bc5 {[%emt 0:01:26]} Kh7 {[%emt 0:01:27]} 43. Bxa7 {[%emt 0:02:05]} Rc3 {[%emt 0:00:22]} 44. Ne5 {[%emt 0:06:18]} Rxa3 {[%emt 0:01:35]} 45. Bc5 {[%emt 0:01:28]} Raxa6 {[%emt 0:01:33]} 46. Bxa6 {[%emt 0:00:09]} Rxa6 {[%emt 0:00:02]} 47. h3 {[%emt 0:02:40]} Ra2+ {[%emt 0:01:50]} 48. Kg1 {[%emt 0:00:14]} Ra1+ {[%emt 0:01:50]} 49. Kh2 {[%emt 0:00:15]} Ra4 {[%emt 0:00:54]} 50. Nd3 {[%emt 0:04:11]} Kh6 {[%emt 0:01:32]} 51. Ne5 {[%emt 0:00:45]} Kh5 {[%emt 0:00:53]} 52. Nd7 {[%emt 0:00:56]} Kh6 {[%emt 0:09:14]} 53. Bf8+ {[%emt 0:00:21]} Kh7 {[%emt 0:00:12]} 54. Nf6+ {[%emt 0:00:04]} Kh8 {[%emt 0:00:04]} 55. Bh6 {[%emt 0:00:03]} Rd4 {[%emt 0:02:42]} 56. Ne8 {[%emt 0:02:16]} Kg8 {[%emt 0:01:09]} 57. Nc7 {[%emt 0:00:29]} Kf7 {[%emt 0:00:32]} 58. Nb5 {[%emt 0:00:12]} Rd3 {[%emt 0:02:13]} 59. Bg5 {[%emt 0:00:13]} Ke6 {[%emt 0:00:36]} 60. Bxh4 {[%emt 0:00:31]} Kd5 {[%emt 0:01:35]} 61. Bf6 {[%emt 0:01:12]} Ke4 {[%emt 0:00:55]} 62. Be5 {[%emt 0:00:25]} Ke3 {[%emt 0:00:25]} 63. Kg3 {[%emt 0:01:30]} Ke2+ {[%emt 0:00:31]} 64. Kh4 {[%emt 0:00:28]} Kf2 {[%emt 0:00:45]} 65. g4 {[%emt 0:00:18]} Kg2 {[%emt 0:00:27]} 66. gxf5 {[%emt 0:00:12]} Rxh3+ {[%emt 0:00:36]} 67. Kg5 {[%emt 0:00:06]} Rg3+ {[%emt 0:00:05]} 68. Kf6 {[%emt 0:00:04]} gxf5 {[%emt 0:00:04]} 69. Nd4 {[%emt 0:00:14]} Kh3 {[%emt 0:00:10]} 70. Kxf5 {[%emt 0:00:05]} Kh4 {[%emt 0:00:21]} 71. Ke6 {[%emt 0:00:58]} Rg6+ {[%emt 0:00:26]} 72. Bf6+ {[%emt 0:02:10]} Kh5 {[%emt 0:00:10]} 73. f5 {[%emt 0:00:24]} Rg1 {[%emt 0:00:06]} 74. Be5 {[%emt 0:00:16]} Kh6 {[%emt 0:00:25]} 75. Kf7 {[%emt 0:00:51]} Rf1 {[%emt 0:00:20]} 76. f6 {[%emt 0:00:25]} Kg5 {[%emt 0:00:05]} 77. Kg7 {[%emt 0:00:23]} Rxf6 {[%emt 0:00:27]} 78. Bxf6+ {[%emt 0:00:04]} Kg4 {[%emt 0:00:03]} 79. Be5 {[%emt 0:00:16]} Kg5 {[%emt 0:00:18]} 80. Kf7 {[%emt 0:00:13]} Kg4 {[%emt 0:00:06]} 81. Kf6 {[%emt 0:00:04]} Kh4 {[%emt 0:00:12]} 82. Kf5 {[%emt 0:00:14]} Kh3 {[%emt 0:00:05]} 83. Kf4 {[%emt 0:00:25]} Kg2 {[%emt 0:00:08]} 84. Ne2 {[%emt 0:00:31]} Kf2 {[%emt 0:00:14]} 85. Ng3 {[%emt 0:00:11]} Kg2 {[%emt 0:00:05]} 86. Bd4 {[%emt 0:00:11]} Kh2 {[%emt 0:00:18]} 87. Kf3 {[%emt 0:00:08]} Kh3 {[%emt 0:00:03]} 88. Nf1 {[%emt 0:04:40]} Kh4 {[%emt 0:00:07]} 89. Ne3 {[%emt 0:00:34]} Kh3 {[%emt 0:00:16]} 90. Be5 {[%emt 0:00:21]} Kh4 {[%emt 0:00:06]} 91. Ng4 {[%emt 0:00:49]} Kg5 {[%emt 0:00:24]} 92. Ne3 {[%emt 0:00:10]} Kh4 {[%emt 0:00:17]} 93. Nd5 {[%emt 0:00:44]} Kh3 {[%emt 0:00:16]} 94. Nf6 {[%emt 0:00:12]} Kh4 {[%emt 0:00:04]} 95. Ne4 {[%emt 0:00:20]} Kh3 {[%emt 0:00:33]} 96. Ng5+ {[%emt 0:00:04]} Kh4 {[%emt 0:00:04]} 97. Kf4 {[%emt 0:00:03]} Kh5 {[%emt 0:00:06]} 98. Kf5 {[%emt 0:00:07]} Kh4 {[%emt 0:00:09]} 99. Bf4 {[%emt 0:00:04]} Kh5 {[%emt 0:00:05]} 100. Bg3 {[%emt 0:00:05]} Kh6 {[%emt 0:00:03]} 101. Ne6 {[%emt 0:00:07]} Kh5 {[%emt 0:00:06]} 102. Ng7+ {[%emt 0:00:05]} Kh6 {[%emt 0:00:03]} 103. Kf6 {[%emt 0:00:03]} Kh7 {[%emt 0:00:04]} 104. Bf4 {[%emt 0:00:07]} Kg8 {[%emt 0:00:06]} 105. Ne6 {[%emt 0:00:04]} Kh7 {[%emt 0:00:02]} 106. Kf7 {[%emt 0:00:07]} Kh8 {[%emt 0:00:03]} 107. Bc1 {[%emt 0:00:08]} Kh7 {[%emt 0:00:02]} 108. Nf8+ {[%emt 0:00:08]} Kh8 {[%emt 0:00:02]} 109. Bb2# {[%emt 0:00:09]} 1-0

[Event "Cracovia Festival-A 2023"]
[Site "Krakow"]
[Date "2024.01.03"]
[Round "8.8"]
[White "Pajeken, Jakob Leon"]
[Black "Ashwath, R.."]
[Result "1/2-1/2"]
[ECO "C60"]
[WhiteElo "2428"]
[BlackElo "2284"]
[Annotator "RC"]
[PlyCount "30"]
[EventDate "2023.12.24"]
[EventType "swiss"]
[EventCountry "POL"]
[SourceTitle "playchess.com"]
[Source "ChessBase"]
[SourceQuality "1"]
[TimeControl "40/5400+30:1800+30"]

1. e4 {[%emt 0:00:16]} e5 {[%emt 0:01:48]} 2. Nf3 {[%emt 0:00:06]} Nc6 {[%emt 0:00:07]} 3. Bb5 {[%emt 0:00:09]} Nge7 {[%emt 0:00:50]} 4. O-O {[%emt 0:01:49]} Ng6 {[%emt 0:00:25]} 5. Nc3 {[%emt 0:05:28]} Bc5 {[%emt 0:07:39]} 6. d3 {[%emt 0:01:36]} Nd4 {[%emt 0:02:34]} 7. Nxd4 {[%emt 0:01:41]} Bxd4 {[%emt 0:00:43]} 8. Ne2 {[%emt 0:02:14]} Bb6 {[%emt 0:01:06]} 9. Be3 {[%emt 0:02:21]} c6 {[%emt 0:03:26]} 10. Bc4 {[%emt 0:02:02]} O-O {[%emt 0:03:02]} 11. Bxb6 {[%emt 0:02:08]} Qxb6 {[%emt 0:02:13]} 12. a4 {[%emt 0:02:51]} Qxb2 {[%emt 0:07:49]} 13. Bb3 {[%emt 0:02:28]} Nf4 {[%emt 0:00:32]} 14. Nxf4 {[%emt 0:05:08]} exf4 {[%emt 0:02:39]} 15. Qf3 {[%emt 0:09:22]} Qf6 {[%emt 0:05:15]} 1/2-1/2

[Event "Cracovia Festival-A 2023"]
[Site "Krakow"]
[Date "2024.01.03"]
[Round "8.9"]
[White "Dziewonski, Dariusz"]
[Black "Cukrowski, Filip"]
[Result "1/2-1/2"]
[ECO "B47"]
[WhiteElo "2224"]
[BlackElo "2402"]
[Annotator "RC"]
[PlyCount "84"]
[EventDate "2023.12.24"]
[EventType "swiss"]
[EventCountry "POL"]
[SourceTitle "playchess.com"]
[Source "ChessBase"]
[SourceQuality "1"]
[TimeControl "40/5400+30:1800+30"]

1. e4 {[%emt 0:00:03]} c5 {[%emt 0:15:28]} 2. Nf3 {[%emt 0:00:07]} e6 {[%emt 0:00:04]} 3. d4 {[%emt 0:00:05]} cxd4 {[%emt 0:00:04]} 4. Nxd4 {[%emt 0:00:04]} Nc6 {[%emt 0:00:07]} 5. Nc3 {[%emt 0:00:04]} Qc7 {[%emt 0:00:05]} 6. Be2 {[%emt 0:00:47]} a6 {[%emt 0:01:16]} 7. Nxc6 {[%emt 0:00:11]} bxc6 {[%emt 0:03:56]} 8. Qd3 {[%emt 0:00:07]} Nf6 {[%emt 0:03:56]} 9. Qg3 {[%emt 0:00:06]} Qxg3 {[%emt 0:14:38]} 10. hxg3 {[%emt 0:00:06]} e5 {[%emt 0:00:09]} 11. g4 {[%emt 0:05:31]} Bb4 {[%emt 0:03:38]} 12. Bd2 {[%emt 0:02:50]} d6 {[%emt 0:00:21]} 13. f3 {[%emt 0:07:49]} Be6 {[%emt 0:05:37]} 14. O-O-O {[%emt 0:03:36]} Nd7 {[%emt 0:05:24]} 15. Kb1 {[%emt 0:11:27]} a5 {[%emt 0:17:16]} 16. g5 {[%emt 0:05:20]} O-O {[%emt 0:07:46]} 17. g3 {[%emt 0:28:30]} f5 {[%emt 0:03:44]} 18. gxf6 {[%emt 0:01:44]} Nxf6 {[%emt 0:02:45]} 19. a3 {[%emt 0:09:27]} Bc5 {[%emt 0:00:01]} 20. Na4 {[%emt 0:00:45]} Bd4 {[%emt 0:00:17]} 21. Bc3 {[%emt 0:00:24]} c5 {[%emt 0:02:38]} 22. Nb6 {[%emt 0:11:01]} Ra7 {[%emt 0:00:12]} 23. Bc4 {[%emt 0:01:00]} Bxc4 {[%emt 0:02:51]} 24. Nxc4 {[%emt 0:00:13]} Bxc3 {[%emt 0:03:22]} 25. bxc3 {[%emt 0:00:04]} Ne8 {[%emt 0:00:13]} 26. Nxd6 {[%emt 0:03:32]} Nxd6 {[%emt 0:00:07]} 27. Rxd6 {[%emt 0:00:02]} Rxf3 {[%emt 0:00:10]} 28. Rd8+ {[%emt 0:02:11]} Kf7 {[%emt 0:00:12]} 29. Rxh7 {[%emt 0:01:32]} Rf1+ {[%emt 0:02:35]} 30. Ka2 {[%emt 0:00:06]} Rb7 {[%emt 0:00:37]} 31. Rhh8 {[%emt 0:02:16]} Rc1 {[%emt 0:02:30]} 32. Rhf8+ {[%emt 0:04:20]} Kg6 {[%emt 0:00:13]} 33. Rd6+ {[%emt 0:00:10]} Kh7 {[%emt 0:00:30]} 34. Rf2 {[%emt 0:00:06]} Rbb1 {[%emt 0:03:15]} 35. Rh2+ {[%emt 0:01:08]} Kg8 {[%emt 0:00:01]} 36. Rd8+ {[%emt 0:00:09]} Kf7 {[%emt 0:00:07]} 37. Rf2+ {[%emt 0:00:01]} Kg6 {[%emt 0:00:37]} 38. Rd6+ {[%emt 0:00:28]} Kh7 {[%emt 0:00:06]} 39. Rh2+ {[%emt 0:00:06]} Kg8 {[%emt 0:00:06]} 40. Rd8+ {[%emt 0:00:00]} Kf7 {[%emt 0:00:00]} 41. Rf2+ {[%emt 0:02:08]} Kg6 {[%emt 0:00:41]} 42. Rd6+ {[%emt 0:04:31]} Kh7 {[%emt 0:24:00]} 1/2-1/2

[Event "Cracovia Festival-A 2023"]
[Site "Krakow"]
[Date "2024.01.03"]
[Round "8.10"]
[White "Schwabeneder, Florian"]
[Black "Jaskolka, Tomasz"]
[Result "1/2-1/2"]
[ECO "B40"]
[WhiteElo "2402"]
[BlackElo "2222"]
[Annotator "RC"]
[PlyCount "132"]
[EventDate "2023.12.24"]
[EventType "swiss"]
[EventCountry "POL"]
[SourceTitle "playchess.com"]
[Source "ChessBase"]
[SourceQuality "1"]
[TimeControl "40/5400+30:1800+30"]

1. e4 {[%emt 0:00:05]} c5 {[%emt 0:00:13]} 2. Nf3 {[%emt 0:00:28]} e6 {[%emt 0:00:20]} 3. b3 {[%emt 0:01:22]} b6 {[%emt 0:01:08]} 4. d4 {[%emt 0:01:06]} cxd4 {[%emt 0:00:29]} 5. Nxd4 {[%emt 0:00:10]} Bb7 {[%emt 0:03:04]} 6. Nd2 {[%emt 0:00:16]} Bb4 {[%emt 0:11:19]} 7. Bb2 {[%emt 0:02:09]} Nf6 {[%emt 0:00:31]} 8. a3 {[%emt 0:02:36]} Bxd2+ {[%emt 0:00:31]} 9. Qxd2 {[%emt 0:00:08]} Nxe4 {[%emt 0:00:26]} 10. Qe3 {[%emt 0:00:08]} d5 {[%emt 0:14:47]} 11. f3 {[%emt 0:09:11]} Nf6 {[%emt 0:07:22]} 12. Nf5 {[%emt 0:05:44]} Rg8 {[%emt 0:07:10]} 13. O-O-O {[%emt 0:11:35]} Nc6 {[%emt 0:05:15]} 14. Bb5 {[%emt 0:06:45]} a6 {[%emt 0:06:12]} 15. Bxc6+ {[%emt 0:03:38]} Bxc6 {[%emt 0:00:03]} 16. Be5 {[%emt 0:18:59]} Kd7 {[%emt 0:00:39]} 17. Nd6 {[%emt 0:08:04]} Ke7 {[%emt 0:00:51]} 18. Rhe1 {[%emt 0:02:13]} Nd7 {[%emt 0:01:42]} 19. Nf5+ {[%emt 0:03:06]} Kf8 {[%emt 0:00:37]} 20. Bd6+ {[%emt 0:00:41]} Ke8 {[%emt 0:00:03]} 21. Be7 {[%emt 0:08:39]} Qc7 {[%emt 0:02:09]} 22. Qg5 {[%emt 0:03:34]} h6 {[%emt 0:02:13]} 23. Qe3 {[%emt 0:05:08]} Qe5 {[%emt 0:07:11]} 24. Qxe5 {[%emt 0:00:09]} Nxe5 {[%emt 0:00:03]} 25. Rxe5 {[%emt 0:00:15]} exf5 {[%emt 0:00:16]} 26. Bc5+ {[%emt 0:01:37]} Kd8 {[%emt 0:03:47]} 27. Bxb6+ {[%emt 0:00:09]} Kd7 {[%emt 0:00:02]} 28. Rxf5 {[%emt 0:00:36]} f6 {[%emt 0:00:22]} 29. Rf4 {[%emt 0:02:13]} Rge8 {[%emt 0:01:04]} 30. Rd2 {[%emt 0:00:19]} Re1+ {[%emt 0:01:19]} 31. Kb2 {[%emt 0:00:07]} Rae8 {[%emt 0:00:39]} 32. Rfd4 {[%emt 0:01:46]} Kd6 {[%emt 0:04:29]} 33. R4d3 {[%emt 0:01:10]} R1e2 {[%emt 0:03:26]} 34. Bf2 {[%emt 0:00:47]} Rxd2 {[%emt 0:00:31]} 35. Rxd2 {[%emt 0:00:08]} Kc7 {[%emt 0:01:51]} 36. a4 {[%emt 0:00:19]} f5 {[%emt 0:00:33]} 37. Kc3 {[%emt 0:01:36]} g5 {[%emt 0:00:49]} 38. Kd3 {[%emt 0:00:55]} Kd6 {[%emt 0:00:35]} 39. Rd1 {[%emt 0:00:58]} Bd7 {[%emt 0:01:05]} 40. Re1 {[%emt 0:00:00]} f4 {[%emt 0:00:00]} 41. Rxe8 {[%emt 0:18:22]} Bxe8 {[%emt 0:04:49]} 42. Bd4 {[%emt 0:00:07]} Bg6+ {[%emt 0:01:31]} 43. Kd2 {[%emt 0:06:05]} h5 {[%emt 0:01:23]} 44. Ba7 {[%emt 0:03:35]} Kc7 {[%emt 0:01:52]} 45. Bc5 {[%emt 0:00:14]} Kd7 {[%emt 0:01:16]} 46. Bf8 {[%emt 0:03:05]} Ke6 {[%emt 0:01:06]} 47. b4 {[%emt 0:01:31]} Be8 {[%emt 0:02:29]} 48. b5 {[%emt 0:00:05]} axb5 {[%emt 0:00:03]} 49. a5 {[%emt 0:00:07]} d4 {[%emt 0:07:55]} 50. a6 {[%emt 0:01:36]} g4 {[%emt 0:04:51]} 51. Bh6 {[%emt 0:00:23]} gxf3 {[%emt 0:01:50]} 52. gxf3 {[%emt 0:00:02]} Bc6 {[%emt 0:00:25]} 53. Ke2 {[%emt 0:00:07]} Ke5 {[%emt 0:01:17]} 54. Bg7+ {[%emt 0:00:26]} Kd5 {[%emt 0:00:27]} 55. Kd3 {[%emt 0:00:24]} Kd6 {[%emt 0:02:52]} 56. Bxd4 {[%emt 0:01:54]} Bxf3 {[%emt 0:00:31]} 57. Bf2 {[%emt 0:00:32]} Kc6 {[%emt 0:02:24]} 58. Kc3 {[%emt 0:00:27]} Be4 {[%emt 0:00:54]} 59. Kb3 {[%emt 0:00:08]} Kc7 {[%emt 0:00:47]} 60. c3 {[%emt 0:00:14]} Kb8 {[%emt 0:00:25]} 61. Kb4 {[%emt 0:00:21]} Bd3 {[%emt 0:00:12]} 62. Ka5 {[%emt 0:00:30]} Ka8 {[%emt 0:00:28]} 63. Kb6 {[%emt 0:00:17]} Bc4 {[%emt 0:00:32]} 64. Bd4 {[%emt 0:01:18]} Bd3 {[%emt 0:00:20]} 65. Be5 {[%emt 0:00:12]} Bc4 {[%emt 0:00:20]} 66. Bxf4 {[%emt 0:00:12]} Bd3 {[%emt 0:00:09]} 1/2-1/2

[Event "Cracovia Festival-A 2023"]
[Site "Krakow"]
[Date "2024.01.03"]
[Round "8.11"]
[White "Suder, Jakub"]
[Black "Dzida, Kamil"]
[Result "1/2-1/2"]
[ECO "D43"]
[WhiteElo "2312"]
[BlackElo "2396"]
[Annotator "RC"]
[PlyCount "88"]
[EventDate "2023.12.24"]
[EventType "swiss"]
[EventCountry "POL"]
[SourceTitle "playchess.com"]
[Source "ChessBase"]
[SourceQuality "1"]
[TimeControl "40/5400+30:1800+30"]

1. d4 {[%emt 0:03:03]} d5 {[%emt 0:01:53]} 2. c4 {[%emt 0:00:05]} c6 {[%emt 0:00:06]} 3. Nf3 {[%emt 0:06:08]} Nf6 {[%emt 0:00:26]} 4. Nc3 {[%emt 0:00:06]} e6 {[%emt 0:00:11]} 5. g3 {[%emt 0:01:28]} dxc4 {[%emt 0:00:09]} 6. Bg2 {[%emt 0:00:06]} b5 {[%emt 0:00:13]} 7. O-O {[%emt 0:01:28]} Bb7 {[%emt 0:01:09]} 8. e4 {[%emt 0:00:08]} Be7 {[%emt 0:05:15]} 9. e5 {[%emt 0:03:06]} Nd5 {[%emt 0:00:09]} 10. Ne4 {[%emt 0:01:17]} Nd7 {[%emt 0:00:43]} 11. Nfg5 {[%emt 0:06:29]} Qb6 {[%emt 0:16:57]} 12. Qf3 {[%emt 0:04:10]} Rf8 {[%emt 0:03:15]} 13. Nxh7 {[%emt 0:03:27]} Qxd4 {[%emt 0:05:17]} 14. Rd1 {[%emt 0:06:21]} Qxe5 {[%emt 0:06:05]} 15. Nxf8 {[%emt 0:00:38]} Bxf8 {[%emt 0:09:01]} 16. Ng5 {[%emt 0:13:51]} Qf6 {[%emt 0:05:35]} 17. Qe2 {[%emt 0:01:56]} O-O-O {[%emt 0:05:22]} 18. a4 {[%emt 0:02:23]} a6 {[%emt 0:02:26]} 19. Nf3 {[%emt 0:03:58]} Qf5 {[%emt 0:06:03]} 20. Be3 {[%emt 0:04:32]} Nc5 {[%emt 0:06:27]} 21. axb5 {[%emt 0:05:56]} cxb5 {[%emt 0:03:49]} 22. Rac1 {[%emt 0:00:55]} Nb3 {[%emt 0:12:57]} 23. Rxc4+ {[%emt 0:06:15]} bxc4 {[%emt 0:00:01]} 24. Qxc4+ {[%emt 0:00:06]} Nc7 {[%emt 0:01:27]} 25. Qxb3 {[%emt 0:02:34]} Rxd1+ {[%emt 0:01:02]} 26. Qxd1 {[%emt 0:00:05]} Qh5 {[%emt 0:01:31]} 27. h3 {[%emt 0:01:50]} Be7 {[%emt 0:01:33]} 28. g4 {[%emt 0:01:23]} Qd5 {[%emt 0:00:01]} 29. Qc1 {[%emt 0:05:07]} Bf6 {[%emt 0:01:04]} 30. Bf4 {[%emt 0:02:39]} e5 {[%emt 0:02:56]} 31. Be3 {[%emt 0:00:52]} g6 {[%emt 0:01:07]} 32. Ne1 {[%emt 0:01:14]} Qb3 {[%emt 0:00:14]} 33. Bxb7+ {[%emt 0:00:25]} Kxb7 {[%emt 0:00:03]} 34. Qc5 {[%emt 0:06:23]} Qxb2 {[%emt 0:00:24]} 35. g5 {[%emt 0:01:10]} Bd8 {[%emt 0:00:38]} 36. Qc4 {[%emt 0:01:13]} Qb1 {[%emt 0:00:30]} 37. Bd2 {[%emt 0:01:47]} Bxg5 {[%emt 0:01:18]} 38. Ba5 {[%emt 0:00:19]} Bd8 {[%emt 0:00:18]} 39. Qxf7 {[%emt 0:00:29]} Kc8 {[%emt 0:00:58]} 40. Qc4 {[%emt 0:00:00]} Qb5 {[%emt 0:00:00]} 41. Qg4+ {[%emt 0:02:56]} Kb7 {[%emt 0:07:52]} 42. Qe4+ {[%emt 0:02:20]} Qc6 {[%emt 0:03:08]} 43. Qxe5 {[%emt 0:01:07]} Bf6 {[%emt 0:00:12]} 44. Qg3 {[%emt 0:01:44]} Bd4 {[%emt 0:05:47]} 1/2-1/2

[Event "Cracovia Festival-A 2023"]
[Site "Krakow"]
[Date "2024.01.03"]
[Round "8.12"]
[White "Kulkarni Bhakti"]
[Black "Balint, Peter"]
[Result "1-0"]
[ECO "A05"]
[WhiteElo "2364"]
[BlackElo "2187"]
[Annotator "RC"]
[PlyCount "133"]
[EventDate "2023.12.24"]
[EventType "swiss"]
[EventCountry "POL"]
[SourceTitle "playchess.com"]
[Source "ChessBase"]
[SourceQuality "1"]
[TimeControl "40/5400+30:1800+30"]

1. Nf3 {[%emt 0:03:51]} Nf6 {[%emt 0:00:25]} 2. c4 {[%emt 0:00:28]} c5 {[%emt 0:00:10]} 3. g3 {[%emt 0:00:36]} Nc6 {[%emt 0:01:21]} 4. Bg2 {[%emt 0:00:20]} d6 {[%emt 0:00:11]} 5. b3 {[%emt 0:03:07]} g6 {[%emt 0:03:57]} 6. Bb2 {[%emt 0:00:12]} Bg7 {[%emt 0:00:09]} 7. O-O {[%emt 0:01:02]} O-O {[%emt 0:00:42]} 8. d3 {[%emt 0:00:35]} a6 {[%emt 0:10:34]} 9. Nc3 {[%emt 0:01:35]} Rb8 {[%emt 0:02:19]} 10. Nd5 {[%emt 0:11:20]} e6 {[%emt 0:17:52]} 11. Nxf6+ {[%emt 0:01:44]} Bxf6 {[%emt 0:00:05]} 12. Qd2 {[%emt 0:04:34]} b5 {[%emt 0:06:16]} 13. Qh6 {[%emt 0:12:52]} e5 {[%emt 0:03:03]} 14. h4 {[%emt 0:02:33]} Bg7 {[%emt 0:01:28]} 15. Qd2 {[%emt 0:00:25]} h6 16. h5 {[%emt 0:16:54]} gxh5 {[%emt 0:14:10]} 17. Nh4 Qg5 {[%emt 0:08:16]} 18. Qxg5 {[%emt 0:04:45]} hxg5 {[%emt 0:00:06]} 19. Bxc6 {[%emt 0:01:16]} gxh4 {[%emt 0:00:04]} 20. gxh4 {[%emt 0:00:10]} Bg4 {[%emt 0:05:43]} 21. f3 {[%emt 0:03:36]} Bh3 {[%emt 0:04:37]} 22. Rf2 {[%emt 0:04:54]} Be6 {[%emt 0:01:04]} 23. f4 {[%emt 0:05:19]} f5 {[%emt 0:04:25]} 24. Rg2 {[%emt 0:02:55]} Kh7 {[%emt 0:01:44]} 25. Rxg7+ {[%emt 0:03:48]} Kxg7 {[%emt 0:00:04]} 26. fxe5 {[%emt 0:00:05]} bxc4 {[%emt 0:01:24]} 27. dxc4 {[%emt 0:00:27]} Kh7 {[%emt 0:00:59]} 28. exd6 {[%emt 0:00:28]} Rb6 {[%emt 0:00:14]} 29. Bf3 {[%emt 0:00:31]} Rxd6 {[%emt 0:00:10]} 30. Bxh5 {[%emt 0:01:57]} f4 {[%emt 0:01:12]} 31. Kf2 {[%emt 0:03:35]} f3 {[%emt 0:01:44]} 32. Bxf3 {[%emt 0:00:21]} Bg4 {[%emt 0:00:05]} 33. Ba3 {[%emt 0:02:01]} Rf5 {[%emt 0:03:06]} 34. Bxc5 {[%emt 0:00:41]} Rdf6 {[%emt 0:00:32]} 35. Bd4 {[%emt 0:01:44]} Rf7 {[%emt 0:00:06]} 36. Rh1 {[%emt 0:00:34]} Bxf3 {[%emt 0:00:03]} 37. exf3 {[%emt 0:00:03]} Rxf3+ {[%emt 0:00:04]} 38. Ke2 {[%emt 0:00:13]} Rg3 {[%emt 0:00:50]} 39. Rh2 {[%emt 0:03:11]} Re7+ {[%emt 0:00:22]} 40. Kd1 {[%emt 0:00:00]} Rd3+ {[%emt 0:00:00]} 41. Rd2 {[%emt 0:01:03]} Rxd2+ {[%emt 0:07:25]} 42. Kxd2 {[%emt 0:00:06]} Kg6 {[%emt 0:00:03]} 43. Be3 {[%emt 0:04:00]} Re4 {[%emt 0:03:24]} 44. Bg5 {[%emt 0:00:24]} Kf5 {[%emt 0:00:42]} 45. Kc3 {[%emt 0:00:30]} Rg4 {[%emt 0:00:37]} 46. Kb4 {[%emt 0:01:23]} Rg2 {[%emt 0:00:08]} 47. a4 {[%emt 0:05:32]} Rg3 {[%emt 0:03:55]} 48. c5 {[%emt 0:01:03]} Ke6 {[%emt 0:11:19]} 49. c6 {[%emt 0:02:07]} a5+ {[%emt 0:00:17]} 50. Kc4 {[%emt 0:02:44]} Rg4+ {[%emt 0:00:14]} 51. Kc5 {[%emt 0:01:17]} Rg3 {[%emt 0:01:57]} 52. Kc4 {[%emt 0:03:52]} Rg4+ {[%emt 0:03:05]} 53. Kc5 {[%emt 0:00:07]} Rg3 {[%emt 0:00:05]} 54. Bd2 {[%emt 0:04:23]} Rxb3 {[%emt 0:08:54]} 55. Bxa5 {[%emt 0:02:30]} Rb1 {[%emt 0:05:43]} 56. Bd8 {[%emt 0:03:30]} Rc1+ {[%emt 0:00:32]} 57. Kb6 {[%emt 0:00:04]} Rb1+ {[%emt 0:00:21]} 58. Kc7 {[%emt 0:01:07]} Ra1 {[%emt 0:00:33]} 59. a5 {[%emt 0:03:37]} Rxa5 {[%emt 0:00:30]} 60. Kb7 {[%emt 0:00:46]} Ra4 {[%emt 0:00:35]} 61. h5 {[%emt 0:02:15]} Rc4 {[%emt 0:00:21]} 62. Bb6 {[%emt 0:01:06]} Kf5 {[%emt 0:00:25]} 63. Be3 {[%emt 0:00:58]} Rb4+ {[%emt 0:00:26]} 64. Ka6 {[%emt 0:00:38]} Rb3 {[%emt 0:00:42]} 65. c7 {[%emt 0:00:52]} Rc3 {[%emt 0:00:19]} 66. Kb7 {[%emt 0:00:10]} Rb3+ {[%emt 0:00:43]} 67. Kc6 {[%emt 0:00:08]} 1-0